Body Name,Service Code,Expenditure Category,Payment Date,Transaction Number,Supplier,Net Amount
Barrow Borough Council,Voids maintenance - HRA,Void repairs,29-Jun-23,200060460,Hughes Brothers,"14,821.37"
Barrow Borough Council,Voids maintenance - HRA,Void repairs,14-Jun-23,200060190,Hughes Brothers,"3,328.47"
Barrow Borough Council,Voids maintenance - HRA,Void repairs,08-Jun-23,200060093,Hughes Brothers,"12,264.45"
Barrow Borough Council,Tenant demand maintenance - HRA,Disrepair,01-Jun-23,200059990,Progression Solicitors,"5,691.60"
Barrow Borough Council,Tenant demand maintenance - HRA,Routine Maintenance,08-Jun-23,200060064,Cumbria Roofing Ulverston,"6,435.30"
Barrow Borough Council,Major works maintenance - HRA,Adaptations,22-Jun-23,200060245,Procare Shower & Bathroom Centre Ltd,659.59
Barrow Borough Council,Barrow BID,Professional fees,22-Jun-23,200060315,Liberata Uk Ltd,"2,416.88"
Barrow Borough Council,Information technology,Data Line Rental,29-Jun-23,200060358,Britannic Technologies Ltd,"-3,011.03"
Barrow Borough Council,Customer services,Agency staff,01-Jun-23,200060003,James Andrews Recruitment Solutions,598.19
Barrow Borough Council,Tenant demand maintenance - HRA,Routine Maintenance,01-Jun-23,200060026,Cumbria Roofing Ulverston,"3,829.00"
Barrow Borough Council,Forum 28,Building cleaning,29-Jun-23,200060465,Elior UK Ltd,"3,031.90"
Barrow Borough Council,Street cleansing,Vehicle Repairs,14-Jun-23,200060163,Dawson Group,"6,784.07"
Barrow Borough Council,Disabled Facilities Grant,Grants,14-Jun-23,200060191,Dolphin Stairlifts Cumbria,"4,800.00"
Barrow Borough Council,Forum catering,Catering contract - Forum,14-Jun-23,200060194,Elior UK Ltd,"2,820.08"
Barrow Borough Council,The Academy,Recoverable charges,29-Jun-23,200060365,Cast Theatre Company,-755.06
Barrow Borough Council,Conducting elections,Postage,29-Jun-23,200060362,Democracy Counts Ltd,"5,314.40"
Barrow Borough Council,The park leisure centre,Planned Building repairs and maintenance,08-Jun-23,200060063,Phosters (FM) Ltd,562
Barrow Borough Council,Barrow park,Grounds maintenance - other works,22-Jun-23,200060305,Peter H Smith Limited,"1,365.90"
Barrow Borough Council,Public conveniences,Building cleaning,08-Jun-23,200060128,Growing Concerns,"3,898.42"
Barrow Borough Council,The markets,Professional fees,08-Jun-23,200060119,DWF LLP,624
Barrow Borough Council,Estates management,Electricity,22-Jun-23,200060266,British Gas Business,811.89
Barrow Borough Council,10CCLO Greatest Hits,Admissions,29-Jun-23,200060366,10CCLO,"4,197.00"
Barrow Borough Council,Capitalised Planned Maintenance,Heating,29-Jun-23,200060459,Sure Maintenance,"27,046.35"
Barrow Borough Council,Tenant demand maintenance - HRA,Routine Maintenance,22-Jun-23,200060304,Ocean Construction UK Ltd,"8,720.36"
Barrow Borough Council,Cost of collection,Council tax collection,01-Jun-23,200060005,Liberata Uk Ltd,"1,279.53"
Barrow Borough Council,Local Council Tax Reduction Scheme (LCTRS),Professional fees,22-Jun-23,200060315,Liberata Uk Ltd,"2,880.00"
Barrow Borough Council,Dock museum,Electricity,22-Jun-23,200060335,NPower,"3,354.10"
Barrow Borough Council,Barrow park,Water,22-Jun-23,200060251,Water Plus Ltd,689.15
Barrow Borough Council,Work in default,WID works,29-Jun-23,200060368,WP Roofing & Building Ltd,580
Barrow Borough Council,Customer services,Agency staff,01-Jun-23,200060003,James Andrews Recruitment Solutions,870
Barrow Borough Council,IR personal account,Tax deducted - CIS tax,01-Jun-23,200059963,Hindle Demolition & Plant Ltd,"-1,000.00"
Barrow Borough Council,Current assets - stocks,Garage Parts,14-Jun-23,200060138,FAUN Zoeller (UK) Ltd,"2,095.95"
Barrow Borough Council,Heritage Action Zone,Grants,29-Jun-23,200060382,Redacted Information,"11,632.79"
Barrow Borough Council,Town Deal - Marina Village,Demolition work,01-Jun-23,200059963,Hindle Demolition & Plant Ltd,"16,400.00"
Barrow Borough Council,Cost of collection,Council tax collection,22-Jun-23,200060315,Liberata Uk Ltd,"1,359.02"
Barrow Borough Council,Pollution,Agency staff,22-Jun-23,200060274,Vivid Resourcing,"1,500.00"
Barrow Borough Council,Recycling,Waste Transfer Charges,01-Jun-23,200059974,Sinkfall Recycling,"5,470.72"
Barrow Borough Council,Recycling,Equipment maintenance,29-Jun-23,200060388,Crimewatch Safeguard Security Systems Ltd,587
Barrow Borough Council,Dr John Cooper-Clarke 06.05.23,Recoverable charges,01-Jun-23,200060028,Crosstown Concerts Ltd,-558.94
Barrow Borough Council,KS Musicals (Reach for the Stars),Admissions,22-Jun-23,200060253,KS Musicals,"7,490.00"
Barrow Borough Council,Capitalised Planned Maintenance,Rewires,29-Jun-23,200060430,Keith Wilson Elec Con Ltd,"3,723.40"
Barrow Borough Council,Tenant demand maintenance - HRA,Consultancy fees,08-Jun-23,200060071,Progression Solicitors,632.5
Barrow Borough Council,Shipyard Towns HLF,Professional fees,29-Jun-23,200060379,Redman Design,"9,981.00"
Barrow Borough Council,A - Elite Dance,Admissions,29-Jun-23,200060407,Elite School of Dance,"6,516.00"
Barrow Borough Council,Coast protection,CAPITA dbs fees,01-Jun-23,200060020,WSP (Real Estate & Infrastructure) Ltd,"1,647.41"
Barrow Borough Council,Recycling,Waste Transfer Charges,01-Jun-23,200059974,Sinkfall Recycling,825
Barrow Borough Council,Planning Policy,Agency staff,08-Jun-23,200060059,The Oyster Partnership Ltd,"1,220.70"
Barrow Borough Council,The markets,Equipment maintenance,01-Jun-23,200059997,Karcher (UK) Ltd,756.96
Barrow Borough Council,Information technology,Professional fees,22-Jun-23,200060231,Proact IT UK Ltd,"16,523.28"
Barrow Borough Council,Customer services,Agency staff,29-Jun-23,200060359,James Andrews Recruitment Solutions,"1,139.40"
Barrow Borough Council,Customer services,Agency staff,22-Jun-23,200060311,James Andrews Recruitment Solutions,"1,069.38"
Barrow Borough Council,HRA share of CDC/NDC,External Audit fees,08-Jun-23,200060082,Grant Thornton UK LLP,"2,421.25"
Barrow Borough Council,Disabled Facilities Grant,Grants,29-Jun-23,200060433,Ward Contracting Ltd,"8,219.29"
Barrow Borough Council,Harding Rise Business Centre,Electricity,22-Jun-23,200060335,NPower,"2,496.55"
Barrow Borough Council,Cyclical maintenance - HRA,Smoke alarms,01-Jun-23,200059976,Keith Wilson Elec Con Ltd,"1,714.96"
Barrow Borough Council,Major works maintenance - HRA,Shop repairs,22-Jun-23,200060310,Allison Construction,"8,931.51"
Barrow Borough Council,Heritage Action Zone,Grants,14-Jun-23,200060147,TI Accountancy Ltd,557.44
Barrow Borough Council,Licensing,Subscriptions,29-Jun-23,200060356,Institute of Licensing,615
Barrow Borough Council,Waste collection,Other expenses,29-Jun-23,200060421,Pye Motors,500
Barrow Borough Council,Recycling,Electricity,14-Jun-23,200060142,Bryt Energy,"1,887.69"
Barrow Borough Council,Recycling,Agency staff,14-Jun-23,200060228,Pearce Bentley Security Services,"1,623.50"
Barrow Borough Council,Recycling,Waste Transfer Charges,14-Jun-23,200060210,FCC Recycling (UK) Ltd,"32,912.15"
Barrow Borough Council,Craven house,Buildings repairs and maintenance,08-Jun-23,200060093,Hughes Brothers,619.84
Barrow Borough Council,Barrow town hall,Buildings repairs and maintenance,29-Jun-23,200060424,FTS Fire & Secuirty Ltd,"1,240.00"
Barrow Borough Council,Current assets - stocks,Museum stock,22-Jun-23,200060236,Nature Planet Aps,618.6
Barrow Borough Council,Telephones Holding A/C,Telephone charges paid,29-Jun-23,200060471,EE Ltd,"2,429.06"
Barrow Borough Council,Corporate management,Professional fees,08-Jun-23,200060078,32West Ltd,"4,439.33"
Barrow Borough Council,Dock museum,Buildings repairs and maintenance,08-Jun-23,200060093,Hughes Brothers,671.39
Barrow Borough Council,Cemeteries,Grounds maintenance - other works,29-Jun-23,200060439,Continental Landscapes Ltd,"3,006.22"
Barrow Borough Council,Recycling,Agency staff,29-Jun-23,200060395,ALS Managed Services,"1,075.97"
Barrow Borough Council,Office support - admin,Photocopying charges,29-Jun-23,200060468,Ricoh UK Ltd,742.89
Barrow Borough Council,Capitalised Planned Maintenance,Kitchens,29-Jun-23,200060440,Howdens Joinery Ltd,754.86
Barrow Borough Council,Disabled Facilities Grant,Grants,01-Jun-23,200059979,Ocean Construction UK Ltd,"6,700.00"
Barrow Borough Council,Major works maintenance - HRA,Repointing Walney,14-Jun-23,200060193,DLP Services (Northern) Ltd,"24,936.79"
Barrow Borough Council,Waste collection,Vehicle hire,01-Jun-23,200059966,Pye Motors,625
Barrow Borough Council,Recycling,Equipment purchase,29-Jun-23,200060445,Terry Chemicals Ltd,"1,104.82"
Barrow Borough Council,Off street car parking,Professional fees,22-Jun-23,200060243,Ringo Ltd,"1,259.81"
Barrow Borough Council,10CCLO Greatest Hits,Hire of halls,29-Jun-23,200060366,10CCLO,"-1,007.50"
Barrow Borough Council,Disabled Facilities Grant,Grants,29-Jun-23,200060472,Lee Bowron Glazing Ltd,"7,300.00"
Barrow Borough Council,Voids maintenance - HRA,Void repairs,08-Jun-23,200060093,Hughes Brothers,"1,157.82"
Barrow Borough Council,Major works maintenance - HRA,Fire damage,22-Jun-23,200060279,Cumbria Design Scaffold Ltd,"1,400.00"
Barrow Borough Council,Major works maintenance - HRA,Adaptations,14-Jun-23,200060193,DLP Services (Northern) Ltd,"8,800.20"
Barrow Borough Council,LUF - Public Realm.,Professional fees,08-Jun-23,200060105,Bob Pedley Safety Services,751
Barrow Borough Council,Local Council Tax Reduction Scheme (LCTRS),LCTRS Admin,22-Jun-23,200060315,Liberata Uk Ltd,"1,359.02"
Barrow Borough Council,Barrow park,Grounds maintenance - schedule of works,08-Jun-23,200060111,Continental Landscapes Ltd,"25,829.09"
Barrow Borough Council,Planning Policy,Agency staff,08-Jun-23,200060059,The Oyster Partnership Ltd,"1,220.70"
Barrow Borough Council,Salthouse Road Depot,Electricity,22-Jun-23,200060335,NPower,"1,727.16"
Barrow Borough Council,Technical services,Consultants' fees,14-Jun-23,200060208,Bob Pedley Safety Services,"1,500.00"
Barrow Borough Council,Dr John Cooper-Clarke 06.05.23,Admissions,01-Jun-23,200060028,Crosstown Concerts Ltd,"11,675.00"
Barrow Borough Council,Housing repairs control account,Housing repairs invoices,01-Jun-23,200060036,Hughes Brothers,"15,634.98"
Barrow Borough Council,Tenant demand maintenance - HRA,Gas works,22-Jun-23,200060317,Sure Maintenance,"6,845.20"
Barrow Borough Council,Town Deal - Place Devt,Professional fees,29-Jun-23,200060371,James Taylor,500
Barrow Borough Council,Barrow Parish Council,Professional fees,22-Jun-23,200060261,Stephen Story Design,900
Barrow Borough Council,UKSPF Revenue,UKSPF Feasibility Studies,08-Jun-23,200060077,Buttress Architects Ltd,"4,196.88"
Barrow Borough Council,Dock museum,Building cleaning,29-Jun-23,200060465,Elior UK Ltd,"1,801.43"
Barrow Borough Council,Dock museum,Museum exhibition,29-Jun-23,200060372,Exhibition Plinths Ltd,522.76
Barrow Borough Council,Parks and open spaces,Grounds maintenance - other works,01-Jun-23,200059984,Continental Landscapes Ltd,"1,233.71"
Barrow Borough Council,Housing Benefits Admin,Professional fees,08-Jun-23,200060084,Ovaltech Ltd,650
Barrow Borough Council,Housing Benefits Admin,Benefits private tenants,01-Jun-23,200060005,Liberata Uk Ltd,776.22
Barrow Borough Council,Barrow town hall,Electricity,22-Jun-23,200060335,NPower,"6,268.51"
Barrow Borough Council,IR personal account,Tax deducted - CIS tax,08-Jun-23,200060103,Bryan Moncur Ltd,-669.9
Barrow Borough Council,IR personal account,Tax deducted - CIS tax,14-Jun-23,200060172,Horrocks (NorthWest) Ltd,-922
Barrow Borough Council,Tenant demand maintenance - HRA,Consultancy fees,29-Jun-23,200060345,Progression Solicitors,"1,924.00"
Barrow Borough Council,Cyclical maintenance - HRA,Smoke alarms,29-Jun-23,200060430,Keith Wilson Elec Con Ltd,"32,909.24"
Barrow Borough Council,Frankie's Guys 05.05.23,Professional fees,01-Jun-23,200059958,David Michael Productions UK Ltd,"8,265.21"
Barrow Borough Council,Crematorium,Equipment purchase,08-Jun-23,200060086,Fibrous Ltd,732.17
Barrow Borough Council,Crematorium,Electricity,22-Jun-23,200060335,NPower,"2,735.78"
Barrow Borough Council,The markets,Buildings repairs and maintenance,22-Jun-23,200060304,Ocean Construction UK Ltd,"2,801.63"
Barrow Borough Council,Information technology,Agency staff,29-Jun-23,200060406,VennGroup Recruitment,"4,075.00"
Barrow Borough Council,Disabled Facilities Grant,Grants,01-Jun-23,200059977,Ward Contracting Ltd,"7,250.00"
Barrow Borough Council,Play Areas,Incidental costs,01-Jun-23,200060008,Play & Leisure Ltd,"14,055.00"
Barrow Borough Council,Housing repairs control account,Housing repairs invoices,29-Jun-23,200060460,Hughes Brothers,"18,037.58"
Barrow Borough Council,Major works maintenance - HRA,Repointing Walney,29-Jun-23,200060464,DLP Services (Northern) Ltd,"4,318.67"
Barrow Borough Council,Pollution,Agency staff,14-Jun-23,200060164,Vivid Resourcing,"1,500.00"
Barrow Borough Council,Waste collection,Clothing and uniforms,29-Jun-23,200060390,Contego Safety Solutions Ltd,"1,126.80"
Barrow Borough Council,Recycling,Other expenses,29-Jun-23,200060438,Fingerprints,734.84
Barrow Borough Council,Recycling,Other expenses,29-Jun-23,200060429,Sinkfall Recycling,"2,823.68"
Barrow Borough Council,Capitalised Planned Maintenance,Roofs,29-Jun-23,200060464,DLP Services (Northern) Ltd,"28,788.63"
Barrow Borough Council,Tenant demand maintenance - HRA,Consultancy fees,01-Jun-23,200059990,Progression Solicitors,"1,077.50"
Barrow Borough Council,Cyclical maintenance - HRA,Smoke alarms,29-Jun-23,200060430,Keith Wilson Elec Con Ltd,"14,439.36"
Barrow Borough Council,Telephones Holding A/C,Telephone charges paid,29-Jun-23,200060471,EE Ltd,"2,391.54"
Barrow Borough Council,The park leisure centre,Maintenance contracts - TSU,29-Jun-23,200060463,TESGL Ltd,699.75
Barrow Borough Council,The park leisure centre,Buildings repairs and maintenance,29-Jun-23,200060424,FTS Fire & Secuirty Ltd,957.9
Barrow Borough Council,Customer services,Agency staff,22-Jun-23,200060311,James Andrews Recruitment Solutions,"1,405.26"
Barrow Borough Council,Capitalised Planned Maintenance,Doors and windows,14-Jun-23,200060193,DLP Services (Northern) Ltd,"1,657.38"
Barrow Borough Council,Disabled Facilities Grant,Grants,29-Jun-23,200060435,Ocean Construction UK Ltd,"18,500.00"
Barrow Borough Council,A - Cast Theatre,Admissions,29-Jun-23,200060365,Cast Theatre Company,"8,918.00"
Barrow Borough Council,Pollution,Agency staff,08-Jun-23,200060062,Vivid Resourcing,"1,275.00"
Barrow Borough Council,Street cleansing,Vehicle hire,14-Jun-23,200060163,Dawson Group,"3,541.40"
Barrow Borough Council,Waste collection,Vehicle hire,14-Jun-23,200060162,CP Davidson & Sons Ltd,"4,140.00"
Barrow Borough Council,Recycling,Agency staff,08-Jun-23,200060058,ALS Managed Services,"1,183.31"
Barrow Borough Council,Recycling,Waste Transfer Charges,14-Jun-23,200060210,FCC Recycling (UK) Ltd,"58,148.59"
Barrow Borough Council,Planning Policy,Agency staff,08-Jun-23,200060059,The Oyster Partnership Ltd,"1,220.70"
Barrow Borough Council,Capitalised Planned Maintenance,Roofs,01-Jun-23,200060004,SIG Trading Ltd,"1,610.93"
Barrow Borough Council,Forum catering,Catering contract - Forum,29-Jun-23,200060465,Elior UK Ltd,608.75
Barrow Borough Council,Waste collection,Equipment purchase,14-Jun-23,200060158,Danline International Ltd,"2,900.00"
Barrow Borough Council,Development control,Agency staff,29-Jun-23,200060380,Park Avenue Recruitment Ltd,"1,690.00"
Barrow Borough Council,Waste collection,Agency staff,01-Jun-23,200060021,ALS Managed Services,"2,626.94"
Barrow Borough Council,Recycling,Buildings repairs and maintenance,22-Jun-23,200060300,Keith Wilson Elec Con Ltd,"2,774.41"
Barrow Borough Council,Recycling,Agency staff,29-Jun-23,200060395,ALS Managed Services,"1,905.16"
Barrow Borough Council,Recycling,Greenwaste recycling,22-Jun-23,200060297,Sinkfall Recycling,"10,814.08"
Barrow Borough Council,Homelessness,Professional fees,14-Jun-23,200060185,First Call,778
Barrow Borough Council,Homelessness,Accommodation - homeless bed & breakfast,14-Jun-23,200060187,Redacted Information,"1,000.00"
Barrow Borough Council,Information technology,Licences,22-Jun-23,200060234,Vodafone Ltd,"6,018.16"
Barrow Borough Council,Barrow town hall,Electricity,22-Jun-23,200060335,NPower,"6,330.85"
Barrow Borough Council,Customer services,Agency staff,01-Jun-23,200060003,James Andrews Recruitment Solutions,"1,139.40"
Barrow Borough Council,HRA share of CDC/NDC,Professional fees,29-Jun-23,200060374,Cabinet Office,532
Barrow Borough Council,Capitalised Planned Maintenance,Roofs,29-Jun-23,200060360,SIG Trading Ltd,581.58
Barrow Borough Council,WAF Shadow Authority,Postage,01-Jun-23,200059983,Royal Mail,691.86
Barrow Borough Council,Tenant demand maintenance - HRA,Consultancy fees,29-Jun-23,200060345,Progression Solicitors,"1,017.50"
Barrow Borough Council,Barrow Parish Council,Postage,29-Jun-23,200060362,Democracy Counts Ltd,"32,903.65"
Barrow Borough Council,Parks and open spaces,Grounds maintenance - schedule of works,01-Jun-23,200059984,Continental Landscapes Ltd,"38,101.08"
Barrow Borough Council,Customer services,Agency staff,22-Jun-23,200060311,James Andrews Recruitment Solutions,906.25
Barrow Borough Council,Justin Moorhouse 30.04.23,Professional fees,01-Jun-23,200060007,Impatient Productions,"1,443.16"
Barrow Borough Council,Capitalised Planned Maintenance,Rewires,01-Jun-23,200059976,Keith Wilson Elec Con Ltd,"15,623.28"
Barrow Borough Council,Disabled Facilities Grant,Grants,08-Jun-23,200060089,Airey Property Developments & Adaptations,"6,690.00"
Barrow Borough Council,Tenant demand maintenance - HRA,Routine Maintenance,22-Jun-23,200060249,UK Environmental & Asbestos Solutions Ltd,"1,175.00"
Barrow Borough Council,Major works maintenance - HRA,Adaptations,01-Jun-23,200059995,Procare Shower & Bathroom Centre Ltd,805.22
Barrow Borough Council,Photocopiers Holding A/C,Photocopier charges paid,29-Jun-23,200060468,Ricoh UK Ltd,574.08
Barrow Borough Council,Heritage Action Zone,Agency staff,22-Jun-23,200060274,Vivid Resourcing,"1,500.00"
Barrow Borough Council,LUF - Public Realm.,Professional fees,08-Jun-23,200060105,Bob Pedley Safety Services,893.5
Barrow Borough Council,Forum 28,Buildings repairs and maintenance,29-Jun-23,200060424,FTS Fire & Secuirty Ltd,"3,884.00"
Barrow Borough Council,The park leisure centre,Maintenance contracts - TSU,29-Jun-23,200060424,FTS Fire & Secuirty Ltd,633
Barrow Borough Council,The park leisure centre,Buildings repairs and maintenance,08-Jun-23,200060103,Bryan Moncur Ltd,"4,785.00"
Barrow Borough Council,Pollution,Agency staff,22-Jun-23,200060274,Vivid Resourcing,"1,500.00"
Barrow Borough Council,KS Musicals (Reach for the Stars),Hire of halls,22-Jun-23,200060253,KS Musicals,"-1,053.50"
Barrow Borough Council,Disabled Facilities Grant,Grants,14-Jun-23,200060198,Lee Bowron Glazing Ltd,"8,062.77"
Barrow Borough Council,Forum catering,Catering contract - Forum,14-Jun-23,200060194,Elior UK Ltd,"2,788.00"
Barrow Borough Council,Major works maintenance - HRA,Asbestos removal,22-Jun-23,200060249,UK Environmental & Asbestos Solutions Ltd,900
Barrow Borough Council,Local Council Tax Reduction Scheme (LCTRS),LCTRS Admin,01-Jun-23,200060005,Liberata Uk Ltd,"1,279.53"
Barrow Borough Council,Dock museum,Maintenance contracts - TSU,22-Jun-23,200060330,TESGL Ltd,561.33
Barrow Borough Council,Homelessness,Accommodation - homeless bed & breakfast,14-Jun-23,200060187,Redacted Information,875
Barrow Borough Council,Information technology,Data Line Rental,29-Jun-23,200060358,Britannic Technologies Ltd,"2,768.39"
Barrow Borough Council,Customer services,Agency staff,01-Jun-23,200060003,James Andrews Recruitment Solutions,"1,069.38"
Barrow Borough Council,Homeless families and dispersed accommodation - HRA,Gas,01-Jun-23,200060017,British Gas Trading Ltd,677.51
Barrow Borough Council,Tenant demand maintenance - HRA,Routine Maintenance,22-Jun-23,200060304,Ocean Construction UK Ltd,960
Barrow Borough Council,Town Hall Stewards,Equipment purchase,29-Jun-23,200060449,EE Payment Processing,996
Barrow Borough Council,Crematorium,Memorials,29-Jun-23,200060417,Teleshore UK Ltd,635.08
Barrow Borough Council,Crematorium,Memorials,08-Jun-23,200060121,Dash Information Systems Ltd,870
Barrow Borough Council,Waste collection,Vehicle hire,14-Jun-23,200060162,CP Davidson & Sons Ltd,"4,140.00"
Barrow Borough Council,Capitalised Planned Maintenance,Kitchens,29-Jun-23,200060440,Howdens Joinery Ltd,"1,365.45"
Barrow Borough Council,Capitalised Planned Maintenance,Kitchens,29-Jun-23,200060440,Howdens Joinery Ltd,"1,401.04"
Barrow Borough Council,Capitalised Planned Maintenance,Rewires,08-Jun-23,200060092,Rexel UK Ltd,829.09
Barrow Borough Council,Disabled Facilities Grant,Grants,08-Jun-23,200060067,Larkin Engineering Services Ltd,"2,652.00"
Barrow Borough Council,Corporate management,External Audit fees,08-Jun-23,200060082,Grant Thornton UK LLP,"9,685.00"
Barrow Borough Council,Recycling,Professional fees,08-Jun-23,200060090,Liberata Uk Ltd,"2,812.50"
Barrow Borough Council,Information technology,Licences,22-Jun-23,200060230,Vodafone Ltd,"11,449.43"
Barrow Borough Council,Technical services,Consultants' fees,29-Jun-23,200060432,Bob Pedley Safety Services,780
Barrow Borough Council,HRA Estates,Other expenses,29-Jun-23,200060473,Love2Shop,610.8
Barrow Borough Council,Barrow Parish Council,Other expenses,29-Jun-23,200060362,Democracy Counts Ltd,"4,950.00"
Barrow Borough Council,Dock museum,Professional fees,14-Jun-23,200060155,Artfly,510
Barrow Borough Council,Barrow park,Grounds maintenance - other works,08-Jun-23,200060125,Neil McDougall Ltd,"1,150.00"
Barrow Borough Council,Playground,Parks & Playgrounds Inspections & maintenance - contract,08-Jun-23,200060111,Continental Landscapes Ltd,"19,353.85"
Barrow Borough Council,Cemeteries,Grounds maintenance - schedule of works,29-Jun-23,200060439,Continental Landscapes Ltd,"13,140.43"
Barrow Borough Council,Suspense accounts,Income suspense account,01-Jun-23,200059996,DWP Debt Management,"1,034.64"
Barrow Borough Council,Housing repairs control account,Housing repairs invoices,08-Jun-23,200060102,Keith Wilson Elec Con Ltd,717.93
Barrow Borough Council,Voids maintenance - HRA,Void repairs,14-Jun-23,200060220,Howdens Joinery Ltd,938.92
Barrow Borough Council,Tenant demand maintenance - HRA,Shop repairs,08-Jun-23,200060065,DSL Heating & Electrical,"5,811.00"
Barrow Borough Council,Tenant demand maintenance - HRA,Consultancy fees,08-Jun-23,200060071,Progression Solicitors,935
Barrow Borough Council,Tenant demand maintenance - HRA,Consultancy fees,01-Jun-23,200059990,Progression Solicitors,"1,017.50"
Barrow Borough Council,Major works maintenance - HRA,Shop repairs,22-Jun-23,200060302,Bob Pedley Safety Services,"1,493.00"
Barrow Borough Council,Telephones Holding A/C,Telephone charges paid,29-Jun-23,200060471,EE Ltd,"2,275.78"
Barrow Borough Council,A - Elite Dance,Recoverable charges,29-Jun-23,200060407,Elite School of Dance,"-1,148.67"
Barrow Borough Council,Barrow Parish Council,Printing and stationery,29-Jun-23,200060362,Democracy Counts Ltd,"1,057.57"
Barrow Borough Council,Parks and open spaces,Grounds maintenance - other works,08-Jun-23,200060111,Continental Landscapes Ltd,"2,032.70"
Barrow Borough Council,Estates management,Maintenance contracts - TSU,22-Jun-23,200060285,Civica UK Ltd,"23,079.00"
Barrow Borough Council,Customer services,Agency staff,22-Jun-23,200060311,James Andrews Recruitment Solutions,"1,139.40"
Barrow Borough Council,HRA Estates,Grounds maintenance - schedule of works,14-Jun-23,200060219,Continental Landscapes Ltd,"6,640.61"
Barrow Borough Council,KS Musicals (Reach for the Stars),Recoverable charges,22-Jun-23,200060253,KS Musicals,-993.33
Barrow Borough Council,Capitalised Planned Maintenance,Roofs,29-Jun-23,200060360,SIG Trading Ltd,"3,379.21"
Barrow Borough Council,Voids maintenance - HRA,Void repairs,29-Jun-23,200060460,Hughes Brothers,"9,383.47"
Barrow Borough Council,Voids maintenance - HRA,Void repairs,01-Jun-23,200060036,Hughes Brothers,"2,362.12"
Barrow Borough Council,Forum 28,Licences,14-Jun-23,200060199,Spektrix Ltd,"1,430.99"
Barrow Borough Council,Forum 28,Equipment purchase,29-Jun-23,200060397,White Light Limited,"10,720.00"
Barrow Borough Council,Barrow park,Grounds maintenance - schedule of works,01-Jun-23,200059984,Continental Landscapes Ltd,"25,829.09"
Barrow Borough Council,Recycling,Waste Transfer Charges,22-Jun-23,200060297,Sinkfall Recycling,"1,178.24"
Barrow Borough Council,Information technology,Data Line Rental,22-Jun-23,200060308,Britannic Technologies Ltd,"2,168.39"
Barrow Borough Council,Customer services,Agency staff,29-Jun-23,200060359,James Andrews Recruitment Solutions,"1,042.19"
Barrow Borough Council,Capitalised Planned Maintenance,Rewires,29-Jun-23,200060430,Keith Wilson Elec Con Ltd,"5,618.90"
Barrow Borough Council,Housing repairs control account,Housing repairs invoices,08-Jun-23,200060093,Hughes Brothers,"17,660.34"
Barrow Borough Council,Current assets - stocks,Postage stock,22-Jun-23,200060320,Pitney Bowes Ltd,"2,038.44"
Barrow Borough Council,Major works maintenance - HRA,Repointing Walney,14-Jun-23,200060193,DLP Services (Northern) Ltd,"25,966.71"
Barrow Borough Council,The park leisure centre,Electricity,29-Jun-23,200060470,NPower,"5,634.05"
Barrow Borough Council,Barrow park,Other bodies expenditure,22-Jun-23,200060259,Barrow BID Company Ltd,"3,223.50"
Barrow Borough Council,Crematorium,Grounds maintenance - other works,29-Jun-23,200060439,Continental Landscapes Ltd,"1,648.08"
Barrow Borough Council,Finance Department,Consultants' fees,08-Jun-23,200060054,LAVAT Consulting Ltd,"1,200.00"
Barrow Borough Council,Housing shops - HRA,Water,29-Jun-23,200060351,Water Plus Ltd,590.67
Barrow Borough Council,A - Dance Fusion,Hire of halls,29-Jun-23,200060414,Dance Fusion,"-1,880.00"
Barrow Borough Council,Telephones Holding A/C,Telephone charges paid,29-Jun-23,200060449,EE Payment Processing,-600
Barrow Borough Council,Parks and open spaces,Grounds maintenance - schedule of works,08-Jun-23,200060111,Continental Landscapes Ltd,"38,101.08"
Barrow Borough Council,Coast protection,CAPITA dbs fees,22-Jun-23,200060271,WSP (Real Estate & Infrastructure) Ltd,"5,491.82"
Barrow Borough Council,Major works maintenance - HRA,Adaptations,29-Jun-23,200060464,DLP Services (Northern) Ltd,580.56
Barrow Borough Council,Dock museum,Maintenance contracts - TSU,14-Jun-23,200060165,Phosters (FM) Ltd,625.97
Barrow Borough Council,Capitalised Planned Maintenance,Roofs,22-Jun-23,200060313,SIG Trading Ltd,"4,892.94"
Barrow Borough Council,Housing repairs control account,Housing repairs invoices,29-Jun-23,200060460,Hughes Brothers,"29,118.35"
Barrow Borough Council,Voids maintenance - HRA,Void repairs,08-Jun-23,200060093,Hughes Brothers,"8,613.95"
Barrow Borough Council,Cyclical maintenance - HRA,Smoke alarms,08-Jun-23,200060102,Keith Wilson Elec Con Ltd,"9,076.08"
Barrow Borough Council,Photocopiers Holding A/C,Photocopier charges paid,29-Jun-23,200060468,Ricoh UK Ltd,545.92
Barrow Borough Council,Conducting elections,Postage,29-Jun-23,200060362,Democracy Counts Ltd,537.3
Barrow Borough Council,Dock museum,Equipment purchase,08-Jun-23,200060060,Ellab Monitoring Solutions Ltd,"2,041.98"
Barrow Borough Council,Finance Department,Staff advertising,29-Jun-23,200060367,Redactive Publishing Ltd,"6,505.60"
Barrow Borough Council,A - Dance Fever,Hire of halls,29-Jun-23,200060455,Dance Fever,"-2,232.50"
Barrow Borough Council,Town Hall catering,Catering contract - town hall,22-Jun-23,200060334,Elior UK Ltd,595.2
Barrow Borough Council,Cyclical maintenance - HRA,Electrical testing,01-Jun-23,200059976,Keith Wilson Elec Con Ltd,"4,666.24"
Barrow Borough Council,Shipyard Towns HLF,Professional fees,22-Jun-23,200060229,Christians Ltd,"3,390.00"
Barrow Borough Council,The park leisure centre,Electricity,22-Jun-23,200060335,NPower,588.65
Barrow Borough Council,Crematorium,Building cleaning,22-Jun-23,200060326,Associated Cleaning Contractors,723.67
Barrow Borough Council,Street cleansing,Vehicle hire,14-Jun-23,200060163,Dawson Group,"3,587.14"
Barrow Borough Council,Disabled Facilities Grant,Grants,22-Jun-23,200060280,Lee Bowron Glazing Ltd,"9,056.63"
Barrow Borough Council,Tenant demand maintenance - HRA,Gas works,29-Jun-23,200060459,Sure Maintenance,"2,741.39"
Barrow Borough Council,Tenant demand maintenance - HRA,Central overheads,08-Jun-23,200060093,Hughes Brothers,"32,090.96"
Barrow Borough Council,Tenant demand maintenance - HRA,Routine Maintenance,14-Jun-23,200060172,Horrocks (NorthWest) Ltd,"9,159.00"
Barrow Borough Council,Cyclical maintenance - HRA,Electrical testing,29-Jun-23,200060430,Keith Wilson Elec Con Ltd,"1,600.47"
Barrow Borough Council,Levelling Up Fund,Equipment purchase,29-Jun-23,200060438,Fingerprints,"1,182.98"
Barrow Borough Council,Local Council Tax Reduction Scheme (LCTRS),LCTRS Admin,08-Jun-23,200060090,Liberata Uk Ltd,"9,368.40"
Barrow Borough Council,Recycling,Agency staff,22-Jun-23,200060272,ALS Managed Services,690.35
Barrow Borough Council,Recycling,Waste Transfer Charges,14-Jun-23,200060145,Thompsons Plant Hire Ltd,700
Barrow Borough Council,Woodbridge Haven Industrial Estate,Electricity,08-Jun-23,200060120,NPower,"8,543.05"
Barrow Borough Council,Customer services,Agency staff,01-Jun-23,200060003,James Andrews Recruitment Solutions,"1,069.38"
Barrow Borough Council,Communal rooms - HRA,Buildings repairs and maintenance,08-Jun-23,200060083,Allison Construction,"4,858.50"
Barrow Borough Council,Voids maintenance - HRA,Void repairs,29-Jun-23,200060460,Hughes Brothers,"7,434.28"
Barrow Borough Council,Corporate management,Professional fees,29-Jun-23,200060374,Cabinet Office,"2,128.00"
Barrow Borough Council,Playground,Parks & Playgrounds Repairs & Maintenance,01-Jun-23,200059984,Continental Landscapes Ltd,"1,150.30"
Barrow Borough Council,Waste collection,Vehicle hire,14-Jun-23,200060162,CP Davidson & Sons Ltd,"3,680.00"
Barrow Borough Council,Recycling,Equipment rental,14-Jun-23,200060183,Initial Washroom Solutions,738.75
Barrow Borough Council,Capitalised Planned Maintenance,Roofs,29-Jun-23,200060360,SIG Trading Ltd,"5,731.71"
Barrow Borough Council,Capitalised Planned Maintenance,Rewires,29-Jun-23,200060458,Rexel UK Ltd,"2,333.68"
Barrow Borough Council,Capitalised Planned Maintenance,Rewires,08-Jun-23,200060092,Rexel UK Ltd,"1,646.96"
Barrow Borough Council,Current assets - stocks,Museum stock,29-Jun-23,200060469,Harper Collins Publishers,559.65
Barrow Borough Council,Voids maintenance - HRA,Void repairs,22-Jun-23,200060318,Hughes Brothers,"5,157.50"
Barrow Borough Council,Major works maintenance - HRA,Void repairs,22-Jun-23,200060318,Hughes Brothers,"2,057.84"
Barrow Borough Council,LUF - Public Realm.,Building and construction works,22-Jun-23,200060258,WoodBlocX Ltd,"3,618.00"
Barrow Borough Council,The park leisure centre,Buildings repairs and maintenance,08-Jun-23,200060063,Phosters (FM) Ltd,"6,758.38"
Barrow Borough Council,Waste collection,Agency staff,29-Jun-23,200060395,ALS Managed Services,"2,488.68"
Barrow Borough Council,Harding Rise Business Centre,Professional fees,08-Jun-23,200060088,Mellor Architects,"2,890.00"
Barrow Borough Council,Voids maintenance - HRA,Void repairs,08-Jun-23,200060093,Hughes Brothers,"6,068.63"
Barrow Borough Council,Town Deal - Place Development,Professional fees,08-Jun-23,200060055,Layer Landscape Architecture Ltd,"1,980.00"
Barrow Borough Council,Parish precepts,Parish precepts,14-Jun-23,200060130,Barrow Parish Council,"287,700.00"
Barrow Borough Council,Forum 28,Building cleaning,14-Jun-23,200060194,Elior UK Ltd,"3,031.90"
Barrow Borough Council,Recycling,Equipment maintenance,14-Jun-23,200060153,Crimewatch Safeguard Security Systems Ltd,"2,340.00"
Barrow Borough Council,Homelessness,Homeless support funding,01-Jun-23,200060009,Accent Housing Ltd,643.42
Barrow Borough Council,HRA Estates,Tenants content insurance,14-Jun-23,200060174,Thistle Insurance Services Ltd,871.09
Barrow Borough Council,Disabled Facilities Grant,Grants,08-Jun-23,200060052,The Wet Room,"7,309.00"
Barrow Borough Council,WAF Shadow Authority,Postage,01-Jun-23,200059983,Royal Mail,938.74
Barrow Borough Council,Major works maintenance - HRA,Adaptations,01-Jun-23,200060046,DLP Services (Northern) Ltd,"14,434.75"
Barrow Borough Council,Shipyard Towns HLF,Professional fees,14-Jun-23,200060154,Lux & Livre,700
Barrow Borough Council,Dock museum,Building cleaning,29-Jun-23,200060465,Elior UK Ltd,"1,801.43"
Barrow Borough Council,Dock museum,Electricity,22-Jun-23,200060335,NPower,"2,683.47"
Barrow Borough Council,Waste collection,Fuel costs,29-Jun-23,200060394,Furness & South Cumberland Supply Association Ltd,"16,254.68"
Barrow Borough Council,Recycling,Maintenance contracts - TSU,29-Jun-23,200060434,FCC Recycling (UK) Ltd,"26,442.26"
Barrow Borough Council,Recycling,Waste Transfer Charges,29-Jun-23,200060434,FCC Recycling (UK) Ltd,"18,022.23"
Barrow Borough Council,Recycling,Waste Transfer Charges,14-Jun-23,200060210,FCC Recycling (UK) Ltd,"40,756.74"
Barrow Borough Council,Office support - admin,Photocopier rental,29-Jun-23,200060468,Ricoh UK Ltd,941.94
Barrow Borough Council,Capitalised Planned Maintenance,Doors and windows,29-Jun-23,200060464,DLP Services (Northern) Ltd,"48,604.90"
Barrow Borough Council,Forum catering,Catering contract - Forum,29-Jun-23,200060465,Elior UK Ltd,"1,106.58"
Barrow Borough Council,Tenant demand maintenance - HRA,Routine Maintenance,14-Jun-23,200060172,Horrocks (NorthWest) Ltd,"8,774.93"
Barrow Borough Council,Cyclical maintenance - HRA,Electrical testing,22-Jun-23,200060300,Keith Wilson Elec Con Ltd,"2,527.10"
Barrow Borough Council,Telephones Holding A/C,Telephone charges paid,29-Jun-23,200060471,EE Ltd,"2,235.93"
Barrow Borough Council,Barrow Parish Council,Printing and stationery,29-Jun-23,200060362,Democracy Counts Ltd,"2,763.45"
Barrow Borough Council,Forum 28,Electricity,22-Jun-23,200060335,NPower,"13,036.11"
Barrow Borough Council,The markets,Water,14-Jun-23,200060180,Water Plus Ltd,719.31
Barrow Borough Council,Barrow town hall,Maintenance contracts - TSU,14-Jun-23,200060165,Phosters (FM) Ltd,626.86
Barrow Borough Council,Cyclical maintenance - HRA,Painting,01-Jun-23,200059975,George Jones & Son (Contractors) Ltd,"1,350.00"
Barrow Borough Council,Playground,Parks & Playgrounds Inspections & maintenance - contract,01-Jun-23,200059984,Continental Landscapes Ltd,"19,353.85"
Barrow Borough Council,Craven house,Building cleaning,22-Jun-23,200060326,Associated Cleaning Contractors,723.67
Barrow Borough Council,A - Dance Fever,Recoverable charges,29-Jun-23,200060455,Dance Fever,"-1,413.76"
Barrow Borough Council,Capitalised Planned Maintenance,Roofs,29-Jun-23,200060360,SIG Trading Ltd,"3,449.89"
Barrow Borough Council,Capitalised Planned Maintenance,Doors and windows,08-Jun-23,200060095,Wrekin Windows,"2,757.96"
Barrow Borough Council,Capitalised Planned Maintenance,Doors and windows,22-Jun-23,200060247,Richmond Joiners & Builders Ltd,"1,399.65"
Barrow Borough Council,Disabled Facilities Grant,Grants,29-Jun-23,200060415,Benchmark Building Serv UK Ltd,"5,805.00"
Barrow Borough Council,Housing repairs control account,Housing repairs invoices,08-Jun-23,200060112,Howdens Joinery Ltd,"1,518.13"
Barrow Borough Council,Steve Harley 16.06.23,Professional fees,29-Jun-23,200060402,TGC Concerts Ltd,"2,158.16"
Barrow Borough Council,Waste collection,Clothing and uniforms,22-Jun-23,200060269,Contego Safety Solutions Ltd,802.06
Barrow Borough Council,Recycling,Vehicle hire,14-Jun-23,200060157,Monks Contractors LTD,"3,910.00"
Barrow Borough Council,Information technology,Licences,22-Jun-23,200060234,Vodafone Ltd,"9,663.57"
Barrow Borough Council,Housing repairs control account,Housing repairs invoices,08-Jun-23,200060112,Howdens Joinery Ltd,"1,565.59"
Barrow Borough Council,Housing repairs control account,Housing repairs invoices,22-Jun-23,200060318,Hughes Brothers,"11,174.74"
Barrow Borough Council,Voids maintenance - HRA,Void repairs,29-Jun-23,200060460,Hughes Brothers,"4,009.97"
Barrow Borough Council,Barrow BID,Other bodies expenditure,22-Jun-23,200060259,Barrow BID Company Ltd,"15,530.70"
Barrow Borough Council,Waste collection,Vehicle hire,14-Jun-23,200060162,CP Davidson & Sons Ltd,"4,600.00"
Barrow Borough Council,Planning Policy,Agency staff,08-Jun-23,200060081,Teem Recruitment Ltd,675
Barrow Borough Council,Capitalised Planned Maintenance,Roofs,22-Jun-23,200060313,SIG Trading Ltd,"5,010.78"
Barrow Borough Council,Voids maintenance - HRA,Void repairs,08-Jun-23,200060093,Hughes Brothers,"2,039.11"
Barrow Borough Council,Tenant demand maintenance - HRA,Routine Maintenance,22-Jun-23,200060322,Procure Plus Ltd,"5,571.34"
Barrow Borough Council,Heritage Action Zone,Agency staff,22-Jun-23,200060274,Vivid Resourcing,"1,250.00"
Barrow Borough Council,Heritage Action Zone,Grants,08-Jun-23,200060053,Redacted Information,"9,123.77"
Barrow Borough Council,General grants,Town Deal - Business & Enterprise,29-Jun-23,200060369,Cumbria Local Enterprise Partnership,"40,839.20"
Barrow Borough Council,Forum 28,Water,08-Jun-23,200060080,Water Plus Ltd,"1,274.50"
Barrow Borough Council,The park leisure centre,Maintenance contracts - TSU,29-Jun-23,200060403,Phosters (FM) Ltd,562
Barrow Borough Council,The park leisure centre,Buildings repairs and maintenance,08-Jun-23,200060126,Yarl Hydracentre Ltd,"5,877.15"
Barrow Borough Council,Kennels,Electricity,22-Jun-23,200060335,NPower,775.93
Barrow Borough Council,Waste collection,Apprenticeship levy,01-Jun-23,200060027,Pearce Bentley Security Services,"1,096.50"
Barrow Borough Council,Housing Benefits Admin,Benefits private tenants,22-Jun-23,200060315,Liberata Uk Ltd,996.61
Barrow Borough Council,10CCLO Greatest Hits,Recoverable charges,29-Jun-23,200060366,10CCLO,-872.18
Barrow Borough Council,Capitalised Planned Maintenance,Roofs,14-Jun-23,200060209,Ward Contracting Ltd,"1,066.92"
Barrow Borough Council,Capitalised Planned Maintenance,Heating,29-Jun-23,200060431,Plumbing Trade Supplies,"29,232.73"
Barrow Borough Council,Tenant demand maintenance - HRA,Consultancy fees,01-Jun-23,200059990,Progression Solicitors,"3,527.50"
Barrow Borough Council,Tenant demand maintenance - HRA,Routine Maintenance,14-Jun-23,200060172,Horrocks (NorthWest) Ltd,"2,213.00"
Barrow Borough Council,Shipyard Towns HLF,Professional fees,01-Jun-23,200060014,Redman Design,"5,400.00"
Barrow Borough Council,Licensing,Professional fees,08-Jun-23,200060115,Ark Givendale Ltd,"1,209.50"
Barrow Borough Council,Community safety,Equipment purchase,29-Jun-23,200060443,Centric Office Solutions,"1,830.00"
Barrow Borough Council,Recycling,Agency staff,08-Jun-23,200060058,ALS Managed Services,"1,242.63"
Barrow Borough Council,Information technology,Software maintenance,01-Jun-23,200060031,Zendesk,"2,880.00"
Barrow Borough Council,HRA Estates,Cleaning - other,22-Jun-23,200060326,Associated Cleaning Contractors,"4,735.45"
Barrow Borough Council,HRA Property inspectors,Agency staff,29-Jun-23,200060352,Teem Recruitment Ltd,507
Barrow Borough Council,Capitalised Planned Maintenance,Doors and windows,08-Jun-23,200060068,Nova Group Ltd,"6,878.10"
Barrow Borough Council,Forum catering,Catering contract - Forum,29-Jun-23,200060465,Elior UK Ltd,"1,998.25"
Barrow Borough Council,The park leisure centre,Leisure Contract,29-Jun-23,200060400,Barrow Forward Ltd,"16,478.00"
Barrow Borough Council,Craven house,Water,01-Jun-23,200060000,Water Plus Ltd,"1,218.62"
Barrow Borough Council,Disabled Facilities Grant,Grants,01-Jun-23,200059959,Lee Bowron Glazing Ltd,"8,600.00"
Barrow Borough Council,Housing repairs control account,Housing repairs invoices,01-Jun-23,200060036,Hughes Brothers,"48,126.75"
Barrow Borough Council,Shipyard Towns HLF,Professional fees,29-Jun-23,200060354,Wex Photo Video,805.6
Barrow Borough Council,Recycling,Professional fees,29-Jun-23,200060355,APSE,"1,610.00"
Barrow Borough Council,Craven house,Buildings repairs and maintenance,29-Jun-23,200060424,FTS Fire & Secuirty Ltd,610.03
Barrow Borough Council,Woodbridge Haven Industrial Estate,Buildings repairs and maintenance,08-Jun-23,200060076,Gilmour Fabrications,748
Barrow Borough Council,Capitalised Planned Maintenance,Rewires,29-Jun-23,200060430,Keith Wilson Elec Con Ltd,"1,895.50"
Barrow Borough Council,Forum catering,Catering contract - Forum,14-Jun-23,200060194,Elior UK Ltd,594.58
Barrow Borough Council,Telephones Holding A/C,Telephone charges paid,29-Jun-23,200060471,EE Ltd,"2,165.39"
Barrow Borough Council,Telephones Holding A/C,Telephone charges paid,29-Jun-23,200060471,EE Ltd,"2,401.28"
Barrow Borough Council,Recycling,Equipment purchase,29-Jun-23,200060390,Contego Safety Solutions Ltd,"1,732.90"
Barrow Borough Council,Off street car parking,Professional fees,08-Jun-23,200060074,Ringo Ltd,"1,120.40"
Barrow Borough Council,Barrow town hall,Maintenance contracts - TSU,29-Jun-23,200060403,Phosters (FM) Ltd,585.59
Barrow Borough Council,Customer services,Agency staff,22-Jun-23,200060311,James Andrews Recruitment Solutions,"1,139.40"
Barrow Borough Council,Customer services,Agency staff,01-Jun-23,200060003,James Andrews Recruitment Solutions,"1,139.40"
Barrow Borough Council,Disabled Facilities Grant,Grants,22-Jun-23,200060282,Benchmark Building Serv UK Ltd,"5,200.00"
Barrow Borough Council,Disabled Facilities Grant,Grants,29-Jun-23,200060454,Airey Property Developments & Adaptations,"9,450.00"
Barrow Borough Council,The park leisure centre,Leisure Contract,29-Jun-23,200060400,Barrow Forward Ltd,"16,478.00"
Barrow Borough Council,The park leisure centre,Leisure Contract,29-Jun-23,200060400,Barrow Forward Ltd,"16,478.00"
Barrow Borough Council,Playground,Parks & Playgrounds Repairs & Maintenance,08-Jun-23,200060111,Continental Landscapes Ltd,"1,990.38"
Barrow Borough Council,Waste collection,Vehicle Repairs,14-Jun-23,200060156,Lancashire DAF,639.11
Barrow Borough Council,Waste collection,Agency staff,08-Jun-23,200060058,ALS Managed Services,"2,626.23"
Barrow Borough Council,Private sector housing,Professional fees,29-Jun-23,200060361,Lambert Smith Hampton,840
Barrow Borough Council,Capitalised Planned Maintenance,Rewires,29-Jun-23,200060458,Rexel UK Ltd,"1,694.72"
Barrow Borough Council,Current assets - stocks,Museum stock,22-Jun-23,200060241,Brandart Ltd,793.75
Barrow Borough Council,Tenant demand maintenance - HRA,Routine Maintenance,22-Jun-23,200060278,Cumbria Roofing Ulverston,"21,416.50"
Barrow Borough Council,Tenant demand maintenance - HRA,Routine Maintenance,01-Jun-23,200060040,PJ Smith (Garafix) Ltd,"1,010.00"
Barrow Borough Council,Major works maintenance - HRA,Digital TV,08-Jun-23,200060101,Aerialek (Dalton) Ltd,920
Barrow Borough Council,Barrow Parish Council,Postage,29-Jun-23,200060362,Democracy Counts Ltd,"3,254.40"
Barrow Borough Council,Recycling,Waste Transfer Charges,29-Jun-23,200060434,FCC Recycling (UK) Ltd,"22,968.58"
Barrow Borough Council,Planning Policy,Agency staff,01-Jun-23,200060001,Teem Recruitment Ltd,843.75
Barrow Borough Council,Planning Policy,Agency staff,08-Jun-23,200060059,The Oyster Partnership Ltd,"1,220.70"
Barrow Borough Council,The markets,Electricity,29-Jun-23,200060470,NPower,"2,346.77"
Barrow Borough Council,Craven house,Electricity,22-Jun-23,200060335,NPower,"19,146.41"
Barrow Borough Council,Capitalised Planned Maintenance,Rewires,29-Jun-23,200060458,Rexel UK Ltd,"1,544.37"
Barrow Borough Council,Disabled Facilities Grant,Grants,29-Jun-23,200060420,TK Access Solutions Ltd,"4,820.00"
Barrow Borough Council,Tenant demand maintenance - HRA,Consultancy fees,29-Jun-23,200060345,Progression Solicitors,797.5
Barrow Borough Council,Tenant demand maintenance - HRA,Routine Maintenance,22-Jun-23,200060249,UK Environmental & Asbestos Solutions Ltd,"1,375.00"
Barrow Borough Council,Major works maintenance - HRA,Fire damage,22-Jun-23,200060262,Chris Welsby Quantity Surveyors,900
Barrow Borough Council,Heritage Action Zone,Agency staff,22-Jun-23,200060274,Vivid Resourcing,"1,375.00"
Barrow Borough Council,Barrow Parish Council,Subscriptions,01-Jun-23,200060010,Cumbria Association of Local Councils,"3,937.56"
Barrow Borough Council,The park leisure centre,Electricity,29-Jun-23,200060470,NPower,"6,034.20"
Barrow Borough Council,Street cleansing,Vehicle hire,14-Jun-23,200060140,Go Plant Fleet Services Ltd,"1,749.33"
Barrow Borough Council,Disabled Facilities Grant,Grants,08-Jun-23,200060127,TK Access Solutions Ltd,"4,519.00"
Barrow Borough Council,Disabled Facilities Grant,Grants,08-Jun-23,200060123,Benchmark Building Serv UK Ltd,"10,000.00"
Barrow Borough Council,LUF - Public Realm.,Professional fees,08-Jun-23,200060105,Bob Pedley Safety Services,"1,726.00"
Barrow Borough Council,Waste collection,Vehicle Repairs,22-Jun-23,200060270,Lancashire DAF,"1,275.00"
Barrow Borough Council,Recycling,Equipment maintenance,29-Jun-23,200060388,Crimewatch Safeguard Security Systems Ltd,900
Barrow Borough Council,Development control,Agency staff,29-Jun-23,200060380,Park Avenue Recruitment Ltd,"1,924.00"
Barrow Borough Council,Capitalised Planned Maintenance,Roofs,01-Jun-23,200060004,SIG Trading Ltd,"5,664.50"
Barrow Borough Council,Telephones Holding A/C,Telephone charges paid,29-Jun-23,200060471,EE Ltd,"2,216.21"
Barrow Borough Council,Waste collection,Agency staff,29-Jun-23,200060395,ALS Managed Services,"2,421.32"
Barrow Borough Council,Planning Policy,Agency staff,08-Jun-23,200060059,The Oyster Partnership Ltd,"1,220.70"
Barrow Borough Council,Barrow town hall,Building cleaning,22-Jun-23,200060326,Associated Cleaning Contractors,"6,259.71"
Barrow Borough Council,Capitalised Planned Maintenance,Doors and windows,01-Jun-23,200059998,Richmond Joiners & Builders Ltd,"9,336.52"
Barrow Borough Council,Dock museum,Maintenance contracts - TSU,22-Jun-23,200060330,TESGL Ltd,561.33
Barrow Borough Council,Parks and open spaces,Grounds maintenance - other works,22-Jun-23,200060255,Greaves Tree Services Ltd,"1,150.00"
Barrow Borough Council,Kennels,Buildings repairs and maintenance,01-Jun-23,200059976,Keith Wilson Elec Con Ltd,"1,518.49"
Barrow Borough Council,Recycling,Waste Transfer Charges,14-Jun-23,200060210,FCC Recycling (UK) Ltd,"19,381.11"
Barrow Borough Council,Recycling,Equipment purchase,29-Jun-23,200060387,OnGrade Ltd,723.5
Barrow Borough Council,Planning Policy,Agency staff,08-Jun-23,200060081,Teem Recruitment Ltd,843.75
Barrow Borough Council,Off street car parking,Buildings repairs and maintenance,08-Jun-23,200060093,Hughes Brothers,502.49
Barrow Borough Council,HRA share of CDC/NDC,External Audit fees,08-Jun-23,200060082,Grant Thornton UK LLP,"8,602.60"
Barrow Borough Council,Tenant demand maintenance - HRA,Gas works,14-Jun-23,200060188,Sure Maintenance,"16,235.75"
Barrow Borough Council,Tenant demand maintenance - HRA,Consultancy fees,29-Jun-23,200060345,Progression Solicitors,"3,815.00"
Barrow Borough Council,A - Dance Fusion,Recoverable charges,29-Jun-23,200060414,Dance Fusion,"-1,444.36"
Barrow Borough Council,Recycling,Agency staff,01-Jun-23,200060021,ALS Managed Services,"1,237.39"
Barrow Borough Council,Planning Policy,Agency staff,29-Jun-23,200060352,Teem Recruitment Ltd,506.25
Barrow Borough Council,Salthouse Road Depot,Electricity,22-Jun-23,200060335,NPower,"1,901.33"
Barrow Borough Council,Woodbridge Haven Industrial Estate,Buildings repairs and maintenance,01-Jun-23,200060045,Andrew Thompson,"2,320.00"
Barrow Borough Council,Suspense accounts,Income suspense account,29-Jun-23,200060416,Dalton with Newton Town Council,"159,889.68"
Barrow Borough Council,Housing repairs control account,Housing repairs invoices,22-Jun-23,200060318,Hughes Brothers,"8,678.64"
Barrow Borough Council,Corporate support,Equipment purchase,29-Jun-23,200060443,Centric Office Solutions,"1,655.00"
Barrow Borough Council,Harding Rise Business Centre,Electricity,22-Jun-23,200060335,NPower,"2,508.75"
Barrow Borough Council,Frankie's Guys 05.05.23,Recoverable charges,01-Jun-23,200059958,David Michael Productions UK Ltd,-894.44
Barrow Borough Council,Corporate management,Professional fees,29-Jun-23,200060348,32West Ltd,"4,439.33"
Barrow Borough Council,Street cleansing,Vehicle hire,14-Jun-23,200060163,Dawson Group,"3,587.14"
Barrow Borough Council,Planning Policy,Agency staff,22-Jun-23,200060252,Teem Recruitment Ltd,506.25
Barrow Borough Council,The markets,Electricity,29-Jun-23,200060470,NPower,"2,445.23"
Barrow Borough Council,Housing Benefits Admin,Benefits private tenants,08-Jun-23,200060090,Liberata Uk Ltd,"10,246.57"
Barrow Borough Council,Information technology,Agency staff,29-Jun-23,200060406,VennGroup Recruitment,"4,075.00"
Barrow Borough Council,Barrow town hall,Professional fees,08-Jun-23,200060048,Steve Payne Consultants Ltd,"1,650.00"
Barrow Borough Council,Voids maintenance - HRA,Void repairs,29-Jun-23,200060460,Hughes Brothers,"10,583.46"
Barrow Borough Council,Tenant demand maintenance - HRA,Gas works,01-Jun-23,200060035,Sure Maintenance,"2,867.18"
Barrow Borough Council,Tenant demand maintenance - HRA,Consultancy fees,01-Jun-23,200059990,Progression Solicitors,852.5
Barrow Borough Council,Kennels,Buildings repairs and maintenance,08-Jun-23,200060102,Keith Wilson Elec Con Ltd,714.62
Barrow Borough Council,Waste collection,Agency staff,22-Jun-23,200060272,ALS Managed Services,"2,626.94"
Barrow Borough Council,Woodbridge Haven Industrial Estate,Electricity,08-Jun-23,200060120,NPower,"8,197.99"
Barrow Borough Council,Capitalised Planned Maintenance,Roofs,08-Jun-23,200060085,SIG Trading Ltd,"2,651.41"
Barrow Borough Council,Capitalised Planned Maintenance,Rewires,14-Jun-23,200060207,Keith Wilson Elec Con Ltd,"11,155.86"
Barrow Borough Council,Disabled Facilities Grant,Grants,08-Jun-23,200060096,Dolphin Stairlifts Cumbria,"2,220.00"
Barrow Borough Council,Disabled Facilities Grant,Grants,01-Jun-23,200060013,The Wet Room,"6,939.00"
Barrow Borough Council,Tenant demand maintenance - HRA,Routine Maintenance,22-Jun-23,200060249,UK Environmental & Asbestos Solutions Ltd,900
Barrow Borough Council,Allotments,Water,22-Jun-23,200060251,Water Plus Ltd,"1,032.51"
Barrow Borough Council,Waste collection,Professional fees,08-Jun-23,200060090,Liberata Uk Ltd,"2,812.50"
Barrow Borough Council,Craven house,Electricity,22-Jun-23,200060335,NPower,"21,179.72"
Barrow Borough Council,Information technology,Consultants' fees,29-Jun-23,200060358,Britannic Technologies Ltd,650
Barrow Borough Council,Disabled Facilities Grant,Grants,14-Jun-23,200060202,Handicare Accessibility Ltd,"1,895.00"
Barrow Borough Council,Disabled Facilities Grant,Grants,29-Jun-23,200060378,The Wet Room,"7,889.00"
Barrow Borough Council,Voids maintenance - HRA,Void repairs,29-Jun-23,200060464,DLP Services (Northern) Ltd,"1,740.40"
Barrow Borough Council,A - Dance Fusion,Admissions,29-Jun-23,200060414,Dance Fusion,"6,424.00"
Barrow Borough Council,LUF - Public Realm.,Professional fees,08-Jun-23,200060057,Emchia Asbestos Solutions Ltd,"1,450.00"
Barrow Borough Council,Cost of collection,Business rates collection,08-Jun-23,200060090,Liberata Uk Ltd,"2,810.52"
Barrow Borough Council,Waste collection,Fuel costs,29-Jun-23,200060394,Furness & South Cumberland Supply Association Ltd,"13,816.72"
Barrow Borough Council,Salthouse Road Depot,Buildings repairs and maintenance,22-Jun-23,200060300,Keith Wilson Elec Con Ltd,"11,399.38"
Barrow Borough Council,A - Dance Fever,Admissions,29-Jun-23,200060455,Dance Fever,"9,221.00"
Barrow Borough Council,Current assets - stocks,Museum stock,01-Jun-23,200060043,House of Marbles,829.91
Barrow Borough Council,Cyclical maintenance - HRA,Painting,22-Jun-23,200060299,George Jones & Son (Contractors) Ltd,"8,459.40"
Barrow Borough Council,Major works maintenance - HRA,Repointing Walney,22-Jun-23,200060333,DLP Services (Northern) Ltd,"1,136.41"
Barrow Borough Council,Telephones Holding A/C,Telephone charges paid,29-Jun-23,200060449,EE Payment Processing,750
Barrow Borough Council,The Academy,Hire of halls,29-Jun-23,200060365,Cast Theatre Company,"-2,265.50"
Barrow Borough Council,Cost of collection,Council tax collection,08-Jun-23,200060090,Liberata Uk Ltd,"9,368.41"
Barrow Borough Council,Crematorium,Electricity,22-Jun-23,200060335,NPower,"3,225.84"
Barrow Borough Council,Capitalised Planned Maintenance,Roofs,29-Jun-23,200060360,SIG Trading Ltd,"1,032.36"
Barrow Borough Council,Capitalised Planned Maintenance,Doors and windows,29-Jun-23,200060464,DLP Services (Northern) Ltd,"4,318.68"
Barrow Borough Council,Democratic representation and management,Subscriptions,29-Jun-23,200060353,Local Government Information Unit,"11,637.00"
Barrow Borough Council,Tenant demand maintenance - HRA,Gas works,01-Jun-23,200060035,Sure Maintenance,"2,256.11"
Barrow Borough Council,Barrow BID,Other bodies expenditure,22-Jun-23,200060259,Barrow BID Company Ltd,"6,767.83"
Barrow Borough Council,Forum 28,Electricity,22-Jun-23,200060335,NPower,"13,701.91"
Barrow Borough Council,Street cleansing,Vehicle Repairs,14-Jun-23,200060163,Dawson Group,568.85
Barrow Borough Council,Off street car parking,Building cleaning,08-Jun-23,200060128,Growing Concerns,623.61
Barrow Borough Council,Finance Department,Professional fees,14-Jun-23,200060182,Pricewaterhouse Coopers LLP,"5,000.00"
Barrow Borough Council,Capitalised Planned Maintenance,Roofs,01-Jun-23,200060046,DLP Services (Northern) Ltd,"45,338.26"
Barrow Borough Council,Telephones Holding A/C,Telephone charges paid,29-Jun-23,200060449,EE Payment Processing,-800
Barrow Borough Council,Corporate management,External Audit fees,08-Jun-23,200060082,Grant Thornton UK LLP,"20,000.00"
Barrow Borough Council,The park leisure centre,Electricity,22-Jun-23,200060335,NPower,785.14
Barrow Borough Council,Barrow park,Gas,01-Jun-23,200059984,Continental Landscapes Ltd,514.19
Barrow Borough Council,Recycling,Vehicle hire,14-Jun-23,200060157,Monks Contractors LTD,"4,370.00"
Barrow Borough Council,Craven house,Buildings repairs and maintenance,08-Jun-23,200060094,Concept Elevators (UK) Ltd,"4,652.20"
Barrow Borough Council,Customer services,Agency staff,22-Jun-23,200060311,James Andrews Recruitment Solutions,"1,305.00"
Barrow Borough Council,Disabled Facilities Grant,Grants,29-Jun-23,200060433,Ward Contracting Ltd,"7,927.02"
Barrow Borough Council,IR personal account,Tax deducted - CIS tax,22-Jun-23,200060278,Cumbria Roofing Ulverston,"-1,500.00"
Barrow Borough Council,Current assets - stocks,Museum stock,01-Jun-23,200059987,Nature Planet Aps,568.2
Barrow Borough Council,Current assets - stocks,Postage stock,29-Jun-23,200060448,Pitney Bowes Ltd,"2,035.83"
Barrow Borough Council,Major works maintenance - HRA,Adaptations,01-Jun-23,200060046,DLP Services (Northern) Ltd,"17,263.91"
Barrow Borough Council,Telephones Holding A/C,Telephone charges paid,29-Jun-23,200060471,EE Ltd,"2,197.21"
Barrow Borough Council,Corporate management,External Audit fees,08-Jun-23,200060082,Grant Thornton UK LLP,"34,410.40"
Barrow Borough Council,Parks and open spaces,Grounds maintenance - other works,22-Jun-23,200060259,Barrow BID Company Ltd,"1,500.00"
Barrow Borough Council,Recycling,Professional training,29-Jun-23,200060426,Furness Fluid Power Ltd,"1,495.00"
Barrow Borough Council,Homelessness,Homeless support funding,01-Jun-23,200059992,Sorella Group Ltd,850
Barrow Borough Council,Capitalised Planned Maintenance,Roofs,01-Jun-23,200060004,SIG Trading Ltd,"3,221.86"
Barrow Borough Council,IR personal account,Tax deducted - CIS tax,14-Jun-23,200060172,Horrocks (NorthWest) Ltd,-900
Barrow Borough Council,Housing repairs control account,Housing repairs invoices,01-Jun-23,200059985,Howdens Joinery Ltd,"2,375.01"
Barrow Borough Council,Current assets - stocks,Garage Parts,29-Jun-23,200060389,Geesinknorba Ltd,"1,262.62"
Barrow Borough Council,Voids maintenance - HRA,Void repairs,01-Jun-23,200060036,Hughes Brothers,882.56
Barrow Borough Council,The park leisure centre,Water,22-Jun-23,200060251,Water Plus Ltd,992.64
Barrow Borough Council,Recycling,Agency staff,29-Jun-23,200060405,Pearce Bentley Security Services,"3,187.50"
Barrow Borough Council,Capitalised Planned Maintenance,Roofs,01-Jun-23,200060046,DLP Services (Northern) Ltd,"26,690.64"
Barrow Borough Council,Capitalised Planned Maintenance,Doors and windows,08-Jun-23,200060095,Wrekin Windows,"13,909.02"
Barrow Borough Council,Dr John Cooper-Clarke 06.05.23,Hire of halls,01-Jun-23,200060028,Crosstown Concerts Ltd,-852.5
Barrow Borough Council,Voids maintenance - HRA,Void repairs,22-Jun-23,200060249,UK Environmental & Asbestos Solutions Ltd,"1,775.00"
Barrow Borough Council,Major works maintenance - HRA,Adaptations,22-Jun-23,200060333,DLP Services (Northern) Ltd,"4,585.38"
Barrow Borough Council,Major works maintenance - HRA,Shop repairs,22-Jun-23,200060284,Chris Bugler,900
Barrow Borough Council,The park leisure centre,Gas,14-Jun-23,200060161,OS Generation Limited,"2,644.86"
Barrow Borough Council,Recycling,Equipment maintenance,14-Jun-23,200060132,Associated Industrial Control Solutions Ltd,"1,774.00"
Barrow Borough Council,Harding Rise Business Centre,Professional fees,08-Jun-23,200060087,Energy Counsel,"1,000.00"
Barrow Borough Council,LUF - Public Realm.,Professional fees,01-Jun-23,200059968,Leck Construction Ltd,"4,412.70"
Barrow Borough Council,A - Elite Dance,Hire of halls,29-Jun-23,200060407,Elite School of Dance,"-1,550.00"
Barrow Borough Council,Barrow BID,Other bodies expenditure,22-Jun-23,200060259,Barrow BID Company Ltd,"4,136.22"
Barrow Borough Council,UKSPF Revenue,UKSPF Feasibility Studies,22-Jun-23,200060250,Curtins Consulting,695
Barrow Borough Council,Corporate management,External Audit fees,29-Jun-23,200060357,Grant Thornton UK LLP,"7,500.00"
Barrow Borough Council,Forum 28,Maintenance contracts - TSU,14-Jun-23,200060165,Phosters (FM) Ltd,"1,204.88"
Barrow Borough Council,The park leisure centre,Buildings repairs and maintenance,08-Jun-23,200060063,Phosters (FM) Ltd,565.95
Barrow Borough Council,Allotments,Water,01-Jun-23,200060000,Water Plus Ltd,700
Barrow Borough Council,Waste collection,Agency staff,08-Jun-23,200060058,ALS Managed Services,"2,626.94"
Barrow Borough Council,HRA administration,Photocopying charges,29-Jun-23,200060468,Ricoh UK Ltd,589.35
